fUST/lending_fUST_20250719
["ID","MTS","AMOUNT","RATE_DAILY","PERIOD"]
[373243795,1752922243659,-460.0,0.00017662,2]
[373243797,1752922243670,-725.83,0.00017662,2]
[373243799,1752922243679,-460.0,0.00017662,2]
[373243801,1752922243688,-460.0,0.00017662,2]
[373243803,1752922243699,-512.24,0.00017662,2]
[373243805,1752922243709,-460.0,0.00017662,2]
[373243807,1752922243718,-460.0,0.00017662,2]
[373243809,1752922243727,-460.0,0.00017662,2]
[373243811,1752922243736,-460.0,0.00017663,2]
[373243812,1752922243746,-460.0,0.00017663,2]
[373243815,1752922243757,-578.28,0.00017663,2]
[373243817,1752922243767,-460.0,0.00017663,2]
[373243819,1752922243776,-460.0,0.00017664,2]
[373243820,1752922243788,-1000.0,0.00017667,2]
[373243822,1752922243797,-1007.57266618,0.00017667,2]
[373243824,1752922243806,-7275.54062151,0.00017685,2]
[373243826,1752922243815,-1000.0,0.00017764,2]
[373243828,1752922243825,-5006.0756588,0.00017831,2]
[373243830,1752922243834,-6400.69010476,0.00017835,2]
[373243832,1752922243843,-12612.80205064,0.00017933,2]
[373243834,1752922243853,-215.67360783,0.00017933,2]
[373243836,1752922243862,-214.52603969,0.00017933,2]
[373243838,1752922243871,-525.83049785,0.00017933,2]
[373243840,1752922243881,-160.0,0.00017933,2]
[373243842,1752922243890,-476.34170116,0.00017933,2]
[373243844,1752922243900,-839.454303,0.00017933,2]
[373243846,1752922243909,-230.94145789,0.00017933,2]
[373243848,1752922243919,-160.0,0.00017933,2]
[373243850,1752922243930,-1416.3,0.00017935,2]
[373243852,1752922243941,-460.0,0.00017935,2]
[373243854,1752922243950,-1380.16,0.00017935,2]
[373243856,1752922243961,-1227.31,0.00017935,2]
[373243858,1752922243970,-666.01,0.00017935,2]
[373243860,1752922243980,-460.0,0.00017935,2]
[373243862,1752922243989,-599.92,0.00017935,2]
[373243864,1752922243999,-460.0,0.00017935,2]
[373243866,1752922244008,-773.11,0.00017935,2]
[373243867,1752922244018,-460.0,0.00017935,2]
[373243869,1752922244028,-460.0,0.00017935,2]
[373243871,1752922244041,-2272.3,0.00017935,2]
[373243873,1752922244051,-460.0,0.00017935,2]
[373243875,1752922244061,-460.0,0.00017936,2]
[373243877,1752922244071,-460.0,0.00017936,2]
[373243879,1752922244081,-460.0,0.00017936,2]
[373243881,1752922244091,-460.0,0.00017936,2]
[373243883,1752922244101,-151.57,0.00017936,2]
[373243885,1752922244111,-460.0,0.00017936,2]
[373243898,1752922244215,-460.0,0.00017936,2]
[373243900,1752922244241,-460.0,0.00017936,2]
[373243902,1752922244250,-460.0,0.00017936,2]
[373243904,1752922244259,-566.08,0.00017936,2]
[373243906,1752922244268,-460.0,0.00017936,2]
[373243908,1752922244277,-460.0,0.00017936,2]
[373243910,1752922244290,-725.83,0.00017936,2]
[373243912,1752922244299,-460.0,0.00017936,2]
[373243914,1752922244309,-460.0,0.00017936,2]
[373243916,1752922244318,-512.24,0.00017936,2]
[373243918,1752922244327,-460.0,0.00017936,2]
[373243920,1752922244336,-588.39750628,0.00017936,2]
[373243922,1752922244347,-552.98,0.00017936,2]
[373243924,1752922244357,-460.0,0.00017937,2]
[373243926,1752922244367,-460.0,0.00017937,2]
[373243928,1752922244376,-578.28,0.00017937,2]
[373243930,1752922244385,-460.0,0.00017937,2]
[373243932,1752922244394,-460.0,0.00017938,2]
[373243934,1752922244403,-17068.99867074,0.00018,2]
[373243935,1752922244413,-1265.07201891,0.00018,2]
[373243937,1752922244422,-182.04499252,0.00018,2]
[373243939,1752922244432,-420.0,0.000181,2]
[373243941,1752922244441,-5006.0756588,0.00018141,2]
[373243943,1752922244450,-926.28,0.00018202,3]
[373243945,1752922244461,-463.14,0.00018202,3]
[373243947,1752922244471,-1416.3,0.00018209,2]
[373243949,1752922244480,-460.0,0.00018209,2]
[373243951,1752922244489,-1380.16,0.00018209,2]
[373243953,1752922244499,-1227.31,0.00018209,2]
[373243955,1752922244508,-666.01,0.00018209,2]
[373243957,1752922244518,-460.0,0.00018209,2]
[373243959,1752922244528,-599.92,0.00018209,2]
[373243961,1752922244539,-460.0,0.00018209,2]
[373243963,1752922244549,-773.11,0.00018209,2]
[373243965,1752922244558,-531.19380089,0.00018209,2]
[373243967,1752922244568,-460.0,0.00018209,2]
[373243969,1752922244577,-2272.3,0.00018209,2]
[373243971,1752922244587,-460.0,0.00018209,2]
[373243973,1752922244597,-460.0,0.0001821,2]
[373243975,1752922244606,-460.0,0.0001821,2]
[373243976,1752922244618,-460.0,0.0001821,2]
[373243978,1752922244630,-460.0,0.0001821,2]
[373243980,1752922244639,-460.0,0.0001821,2]
[373243982,1752922244649,-460.0,0.0001821,2]
[373243984,1752922244659,-460.0,0.0001821,2]
[373243986,1752922244669,-460.0,0.0001821,2]
[373243988,1752922244679,-566.08,0.0001821,2]
[373243990,1752922244690,-460.0,0.0001821,2]
[373243992,1752922244701,-725.83,0.0001821,2]
[373243994,1752922244711,-460.0,0.0001821,2]
[373243996,1752922244721,-181.44,0.0001821,2]
[373243998,1752922244731,-512.24,0.0001821,2]
[373244000,1752922244743,-450.71,0.0001821,2]
[373244002,1752922244753,-897.99,0.00018211,2]
[373244004,1752922244762,-460.0,0.00018211,2]
[373244006,1752922244773,-578.28,0.00018211,2]
[373244008,1752922244783,-460.0,0.00018211,2]
[373244010,1752922244793,-548.51281732,0.00018212,2]
[373244012,1752922244803,-380.22841907,0.00018312,2]
[373244014,1752922244814,-5006.0756588,0.00018452,2]
[373244016,1752922244824,-1416.3,0.00018483,2]
[373244018,1752922244835,-460.0,0.00018483,2]
[373244020,1752922244846,-1380.16,0.00018483,2]
[373244022,1752922244856,-1227.31,0.00018483,2]
[373244024,1752922244868,-666.01,0.00018483,2]
[373244026,1752922244878,-460.0,0.00018483,2]
[373244028,1752922244888,-599.92,0.00018483,2]
[373244030,1752922244898,-460.0,0.00018483,2]
[373244032,1752922244908,-773.11,0.00018483,2]
[373244034,1752922244918,-460.0,0.00018483,2]
[373244036,1752922244928,-2272.3,0.00018483,2]
[373244038,1752922244937,-460.0,0.00018483,2]
[373244040,1752922244947,-207.06699781,0.00018484,2]
[373244042,1752922244956,-460.0,0.00018484,2]
[373244044,1752922244966,-566.97421693,0.00018484,2]
[373244046,1752922244976,-460.0,0.00018484,2]
[373244048,1752922244986,-460.0,0.00018484,2]
[373244050,1752922244996,-566.08,0.00018484,2]
[373244051,1752922245005,-460.0,0.00018484,2]
[373244053,1752922245015,-725.83,0.00018484,2]
[373244055,1752922245024,-460.0,0.00018484,2]
[373244057,1752922245035,-512.24,0.00018484,2]
[373244059,1752922245045,-897.99,0.00018485,2]
[373244061,1752922245055,-460.0,0.00018485,2]
[373244063,1752922245064,-578.28,0.00018485,2]
[373244065,1752922245074,-460.0,0.00018485,2]
[373244067,1752922245084,-160.0,0.000185,2]
[373244069,1752922245093,-1416.3,0.00018757,2]
[373244071,1752922245102,-460.0,0.00018757,2]
[373244073,1752922245112,-1380.16,0.00018757,2]
[373244075,1752922245121,-1227.31,0.00018757,2]
[373244077,1752922245130,-666.01,0.00018757,2]
[373244079,1752922245139,-460.0,0.00018757,2]
[373244081,1752922245149,-599.92,0.00018757,2]
[373244082,1752922245158,-460.0,0.00018757,2]
[373244084,1752922245167,-773.11,0.00018757,2]
[373244086,1752922245176,-258.43933762,0.00018757,2]
[373244088,1752922245186,-2272.3,0.00018757,2]
[373244090,1752922245196,-460.0,0.00018757,2]
[373244092,1752922245205,-460.0,0.00018758,2]
[373244094,1752922245214,-539.39,0.00018758,2]
[373244096,1752922245224,-460.0,0.00018758,2]
[373244098,1752922245234,-566.08,0.00018758,2]
[373244100,1752922245243,-460.0,0.00018758,2]
[373244102,1752922245253,-725.83,0.00018758,2]
[373244104,1752922245262,-512.24,0.00018758,2]
[373244106,1752922245272,-897.99,0.00018759,2]
[373244108,1752922245281,-460.0,0.00018759,2]
[373244110,1752922245293,-578.28,0.00018759,2]
[373244112,1752922245303,-460.0,0.00018759,2]
[373244114,1752922245312,-5006.0756588,0.00018762,2]
[373244116,1752922245321,-496.19802936,0.000189,2]
[373244118,1752922245330,-1416.3,0.00019031,2]
[373244120,1752922245339,-460.0,0.00019031,2]
[373244122,1752922245349,-1380.16,0.00019031,2]
[373244124,1752922245358,-1227.31,0.00019031,2]
[373244126,1752922245367,-666.01,0.00019031,2]
[373244128,1752922245376,-599.92,0.00019031,2]
[373244130,1752922245385,-460.0,0.00019031,2]
[373244131,1752922245395,-773.11,0.00019031,2]
[373244133,1752922245404,-2272.3,0.00019031,2]
[373244135,1752922245414,-460.0,0.00019031,2]
[373244137,1752922245423,-460.0,0.00019032,2]
[373244139,1752922245433,-460.0,0.00019032,2]
[373244141,1752922245442,-566.08,0.00019032,2]
[373244143,1752922245452,-460.0,0.00019032,2]
[373244145,1752922245461,-725.83,0.00019032,2]
[373244147,1752922245471,-512.24,0.00019032,2]
[373244149,1752922245480,-897.99,0.00019033,2]
[373244151,1752922245490,-460.0,0.00019033,2]
[373244152,1752922245499,-578.28,0.00019033,2]
[373244153,1752922245508,-460.0,0.00019033,2]
[373244154,1752922245517,-207.4,0.00019042,2]
[373244155,1752922245526,-260.0,0.00019048,2]
[373244156,1752922245536,-5006.0756588,0.00019072,2]
[373244157,1752922245545,-151.0,0.000191,2]
[373244158,1752922245555,-5000.0,0.00019178,2]
[373244159,1752922245564,-5000.0,0.00019178,2]
[373244160,1752922245573,-347.09275,0.00019178,2]
[373244161,1752922245582,-224921.47825517,0.000193,2]
[373244162,1752922245592,-151.255532,0.000193,2]
[373244163,1752922245601,-151.0,0.000193,2]
[373244164,1752922245610,-151.0,0.000193,2]
[373244165,1752922245620,-151.0,0.000193,2]
[373244166,1752922245632,-151.0,0.000193,2]
[373244167,1752922245641,-151.0,0.000193,2]
[373244168,1752922245651,-151.0,0.000193,2]
[373244169,1752922245660,-151.0,0.000193,2]
[373244170,1752922245670,-319.64367,0.000193,2]
[373244171,1752922245679,-319.64367,0.000193,2]
[373244172,1752922245689,-151.0,0.000193,2]
[373244173,1752922245698,-151.0,0.000193,2]
[373244174,1752922245707,-151.0,0.000193,2]
[373244175,1752922245717,-151.0,0.000193,2]
[373244176,1752922245726,-151.0,0.000193,2]
[373244177,1752922245735,-151.0,0.000193,2]
[373244178,1752922245745,-151.0,0.000193,2]
[373244179,1752922245755,-151.0,0.000193,2]
[373244180,1752922245765,-151.0,0.000193,2]
[373244181,1752922245775,-151.0,0.000193,2]
[373244183,1752922245786,-151.0,0.000193,2]
[373244185,1752922245795,-235.366928,0.000193,2]
[373244187,1752922245805,-235.366928,0.000193,2]
[373244189,1752922245815,-1416.3,0.00019305,2]
[373244191,1752922245824,-460.0,0.00019305,2]
[373244193,1752922245833,-1380.16,0.00019305,2]
[373244195,1752922245843,-1227.31,0.00019305,2]
[373244197,1752922245852,-666.01,0.00019305,2]
[373244199,1752922245862,-599.92,0.00019305,2]
[373244201,1752922245871,-460.0,0.00019305,2]
[373244203,1752922245881,-773.11,0.00019305,2]
[373244205,1752922245891,-2272.3,0.00019305,2]
[373244207,1752922245902,-460.0,0.00019305,2]
[373244209,1752922245912,-460.0,0.00019306,2]
[373244211,1752922245922,-460.0,0.00019306,2]
[373244213,1752922245932,-566.08,0.00019306,2]
[373244215,1752922245942,-460.0,0.00019306,2]
[373244217,1752922245952,-725.83,0.00019306,2]
[373244219,1752922245961,-512.24,0.00019306,2]
[373244221,1752922245971,-897.99,0.00019307,2]
[373244223,1752922245981,-274.13934085,0.00019307,2]
[373244225,1752922245991,-578.28,0.00019307,2]
[373244227,1752922246001,-460.0,0.00019307,2]
[373244229,1752922246010,-5006.0756588,0.00019383,2]
[373244231,1752922246020,-151.0,0.000194,2]
[373244233,1752922246030,-251.544349,0.00019452,2]
[373244235,1752922246040,-124332.83828679,0.0001949,2]
[373244237,1752922246050,-151.0,0.0001949,2]
[373244239,1752922246060,-151.0,0.0001949,2]
[373244241,1752922246069,-151.0,0.0001949,2]
[373244243,1752922246079,-151.0,0.0001949,2]
[373244245,1752922246088,-151.173008,0.0001949,2]
[373244247,1752922246098,-151.0,0.0001949,2]
[373244249,1752922246107,-151.0,0.0001949,2]
[373244251,1752922246116,-151.0,0.0001949,2]
[373244253,1752922246125,-151.0,0.0001949,2]
[373244255,1752922246135,-151.0,0.0001949,2]
[373244257,1752922246144,-151.0,0.0001949,2]
[373244259,1752922246153,-151.0,0.0001949,2]
[373244261,1752922246163,-232.50663,0.0001949,2]
[373244263,1752922246172,-151.0,0.0001949,2]
[373244265,1752922246181,-151.0,0.0001949,2]
[373244267,1752922246191,-151.0,0.0001949,2]
[373244270,1752922246205,-151.0,0.0001949,2]
[373244272,1752922246214,-151.0,0.0001949,2]
[373244274,1752922246224,-151.0,0.0001949,2]
[373244276,1752922246233,-151.0,0.0001949,2]
[373244278,1752922246243,-334.553141,0.0001949,2]
[373244280,1752922246252,-151.0,0.0001949,2]
[373244282,1752922246262,-151.0,0.0001949,2]
[373244284,1752922246271,-151.0,0.0001949,2]
[373244286,1752922246280,-151.0,0.0001949,2]
[373244287,1752922246290,-151.0,0.0001949,2]
[373244289,1752922246300,-151.0,0.0001949,2]
[373244291,1752922246309,-151.0,0.0001949,2]
[373244293,1752922246319,-151.0,0.0001949,2]
[373244296,1752922246333,-319.64367,0.0001949,2]
[373244298,1752922246343,-319.64367,0.0001949,2]
[373244300,1752922246353,-163.161559,0.0001949,2]
[373244302,1752922246361,-151.0,0.0001949,2]
[373244304,1752922246371,-151.0,0.0001949,2]
[373244306,1752922246380,-151.0,0.0001949,2]
[373244308,1752922246389,-151.0,0.0001949,2]
[373244310,1752922246399,-151.0,0.0001949,2]
[373244312,1752922246408,-151.0,0.0001949,2]
[373244314,1752922246418,-254.15796,0.0001949,2]
[373244316,1752922246427,-151.0,0.0001949,2]
[373244317,1752922246436,-151.0,0.0001949,2]
[373244320,1752922246446,-235.366928,0.0001949,2]
[373244322,1752922246455,-235.366928,0.0001949,2]
[373244323,1752922246466,-250.0,0.00019496,2]
[373244325,1752922246476,-1416.3,0.00019579,2]
[373244327,1752922246485,-460.0,0.00019579,2]
[373244329,1752922246495,-1380.16,0.00019579,2]
[373244331,1752922246504,-1227.31,0.00019579,2]
[373244333,1752922246514,-666.01,0.00019579,2]
[373244335,1752922246523,-599.92,0.00019579,2]
[373244337,1752922246533,-460.0,0.00019579,2]
[373244339,1752922246543,-773.11,0.00019579,2]
[373244341,1752922246553,-2272.3,0.00019579,2]
[373244343,1752922246562,-460.0,0.00019579,2]
[373244345,1752922246571,-460.0,0.0001958,2]
[373244347,1752922246581,-460.0,0.0001958,2]
[373244349,1752922246591,-566.08,0.0001958,2]
[373244351,1752922246600,-460.0,0.0001958,2]
[373244353,1752922246609,-725.83,0.0001958,2]
[373244355,1752922246619,-512.24,0.0001958,2]
[373244357,1752922246632,-897.99,0.00019581,2]
[373244359,1752922246641,-578.28,0.00019581,2]
[373244361,1752922246654,-460.0,0.00019581,2]
[373244364,1752922246665,-536.71,0.00019586,2]
[373244365,1752922246674,-360.0,0.00019596,2]
[373244367,1752922246684,-153.0,0.00019616,2]
[373244369,1752922246694,-153.0,0.00019616,2]
[373244371,1752922246705,-153.0,0.00019616,2]
[373244374,1752922246716,-153.0,0.00019616,2]
[373244376,1752922246725,-153.0,0.00019616,2]
[373244378,1752922246735,-5006.0756588,0.00019693,2]
[373244379,1752922246744,-151.0,0.000197,2]
[373244381,1752922246753,-151.0,0.000197,2]
[373244383,1752922246762,-705.18445603,0.00019702,5]
[373244385,1752922246772,-151.590058,0.00019758,2]
[373244387,1752922246782,-392.0,0.00019778,2]
[373244389,1752922246794,-1416.3,0.00019853,2]
[373244392,1752922246804,-460.0,0.00019853,2]
[373244394,1752922246813,-1380.16,0.00019853,2]
[373244396,1752922246822,-1227.31,0.00019853,2]
[373244398,1752922246831,-666.01,0.00019853,2]
[373244400,1752922246840,-599.92,0.00019853,2]
[373244401,1752922246849,-460.0,0.00019853,2]
[373244403,1752922246859,-368.72720777,0.00019853,2]
[373244446,1752922247248,-356.7,0.00016565,2]
[373244451,1752922247290,-103.3,0.00016565,2]
[373244453,1752922247300,-460.0,0.00016565,2]
[373244455,1752922247309,-460.0,0.00016566,2]
[373244457,1752922247319,-460.0,0.00016839,2]
[373244459,1752922247329,-460.0,0.00017113,2]
[373244461,1752922247339,-1405.7,0.00017114,2]
[373244463,1752922247348,-460.0,0.00017387,2]
[373244465,1752922247358,-1405.7,0.00017388,2]
[373244467,1752922247367,-150.11,0.00017661,2]
[373244469,1752922247377,-551.69,0.00017662,2]
[373244476,1752922247434,-507.5770138,0.00017662,2]
[373244478,1752922247445,-346.4329862,0.00017662,2]
[373244480,1752922247454,-1405.7,0.00017936,2]
[373244483,1752922247464,-1405.7,0.0001821,2]
[373244484,1752922247475,-875.65352658,0.00018484,2]
[373250349,1752922892806,352.267066,0.00013699,2]
[373257005,1752923717706,5000.0,0.0001652,2]
[373257008,1752923952277,334.653712,0.00013699,2]
[373257010,1752923999442,-509.77476595,0.00016564,2]
[373257011,1752923999464,-728.0,0.00016834,2]
[373257012,1752923999486,-460.0,0.00016834,2]
[373257013,1752923999506,-460.0,0.00016834,2]
[373257014,1752923999528,-300.0,0.00016834,2]
[373257015,1752923999550,-460.0,0.00016834,2]
[373257016,1752923999570,-585.83293945,0.00016835,2]
[373257017,1752923999591,-460.0,0.00016835,2]
[373257018,1752923999611,-460.0,0.00016835,2]
[373257019,1752923999632,-400.18269116,0.00016835,2]
[373257020,1752923999654,-460.0,0.00016835,2]
[373257021,1752923999674,-460.0,0.00016835,2]
[373257022,1752923999695,-460.0,0.00016835,2]
[373257023,1752923999715,-460.0,0.00016835,2]
[373257024,1752923999736,-1855.88,0.00016835,2]
[373257025,1752923999757,-460.0,0.00016835,2]
[373257026,1752923999778,-460.0,0.00016835,2]
[373257027,1752923999798,-449.78925658,0.00016835,2]
[373257028,1752923999818,-460.0,0.00016835,2]
[373257029,1752923999839,-460.0,0.00016835,2]
[373257030,1752923999860,-259.63602009,0.00016835,2]
[373257031,1752923999880,-460.0,0.00016835,2]
[373257032,1752923999900,-460.0,0.00016835,2]
[373257033,1752923999920,-460.0,0.00016835,2]
[373257034,1752923999940,-460.0,0.00016835,2]
[373257035,1752923999960,-460.0,0.00016835,2]
[373257036,1752923999980,-460.0,0.00016835,2]
[373257037,1752923999999,-460.0,0.00016835,2]
[373257038,1752924000021,-460.0,0.00016835,2]
[373257039,1752924000044,-460.0,0.00016835,2]
[373257040,1752924000066,-460.0,0.00016835,2]
[373257041,1752924000087,-460.0,0.00016835,2]
[373257042,1752924000108,-460.0,0.00016835,2]
[373257043,1752924000131,-460.0,0.00016835,2]
[373257044,1752924000153,-460.0,0.00016835,2]
[373257045,1752924000176,-460.0,0.00016835,2]
[373257046,1752924000199,-498.58,0.00016835,2]
[373257047,1752924000223,-460.0,0.00016835,2]
[373257048,1752924000245,-460.0,0.00016835,2]
[373257049,1752924000267,-160.12173054,0.00016835,2]
[373257050,1752924000294,-460.0,0.00016835,2]
[373257051,1752924000319,-460.0,0.00016835,2]
[373257052,1752924000343,-460.0,0.00016835,2]
[373257053,1752924000366,-1328.49,0.00016835,2]
[373257054,1752924000389,-826.17,0.00016835,2]
[373257055,1752924000414,-460.0,0.00016835,2]
[373257056,1752924000435,-460.0,0.00016835,2]
[373257057,1752924000459,-460.0,0.00016835,2]
[373257058,1752924000480,-460.0,0.00016835,2]
[373257059,1752924000503,-805.09,0.00016835,2]
[373257060,1752924000526,-460.0,0.00016835,2]
[373257061,1752924000550,-715.94,0.00016835,2]
[373257062,1752924000572,-959.22,0.00016835,2]
[373257063,1752924000593,-460.0,0.00016835,2]
[373257064,1752924000616,-460.0,0.00016835,2]
[373257065,1752924000638,-460.0,0.00016835,2]
[373257066,1752924000660,-433.80641339,0.00016835,2]
[373257067,1752924000681,-460.0,0.00016835,2]
[373257068,1752924000705,-460.0,0.00016835,2]
[373257069,1752924000726,-27058.40196213,0.00016835,2]
[373257070,1752924000746,-460.0,0.00016836,2]
[373257071,1752924000767,-224.44983537,0.00016836,2]
[373257072,1752924000790,-460.0,0.00016836,2]
[373257073,1752924000810,-517.51736164,0.00016836,2]
[373257074,1752924000830,-460.0,0.00016836,2]
[373257075,1752924000850,-460.0,0.00016836,2]
[373257076,1752924000870,-460.0,0.00016836,2]
[373257077,1752924000890,-460.0,0.00016836,2]
[373257078,1752924000911,-362.99024277,0.00016836,2]
[373257079,1752924000932,-460.855006,0.00016836,2]
[373257080,1752924000952,-460.0,0.00016836,2]
[373257081,1752924000972,-460.0,0.00016836,2]
[373257082,1752924000993,-460.0,0.00016836,2]
[373257083,1752924001014,-460.0,0.00016836,2]
[373257084,1752924001037,-460.0,0.00016836,2]
[373257085,1752924001057,-287.85927966,0.00016836,2]
[373257086,1752924001078,-460.0,0.00016836,2]
[373257087,1752924001098,-460.0,0.00016836,2]
[373257088,1752924001118,-460.0,0.00016836,2]
[373257089,1752924001139,-460.0,0.00016836,2]
[373257090,1752924001158,-257.47516588,0.00016836,2]
[373257091,1752924001179,-498.0,0.00016836,2]
[373257092,1752924001199,-151.0,0.00016836,2]
[373257093,1752924001220,-151.0,0.00016836,2]
[373257094,1752924001240,-151.92937431,0.00016836,2]
[373257095,1752924001260,-151.0,0.00016836,2]
[373257096,1752924001282,-460.0,0.00016836,2]
[373257097,1752924001304,-151.7844778,0.00016836,2]
[373257098,1752924001325,-151.0,0.00016836,2]
[373257099,1752924001345,-151.0,0.00016836,2]
[373257100,1752924001366,-455.22347728,0.00016836,2]
[373257101,1752924083843,12136.1427762,0.00016123,2]
[373257102,1752924100004,5000.0,0.0001652,2]
[373257103,1752924116197,5000.0,0.0001652,2]
[373257104,1752924132129,5000.0,0.0001652,2]
[373257105,1752924148105,5000.0,0.0001652,2]
[373257106,1752924151098,7275.54062152,0.00016517,2]
[373257107,1752924163296,5000.0,0.0001652,2]
[373257108,1752924181367,5000.0,0.0001652,2]
[373257109,1752924199022,5000.0,0.0001652,2]
[373257110,1752924219606,5000.0,0.0001652,2]
[373257111,1752924242048,5000.0,0.0001652,2]
[373257112,1752924259755,5000.0,0.0001652,2]
[373257113,1752924275916,5000.0,0.0001652,2]
[373257114,1752924291896,5000.0,0.0001652,2]
[373257117,1752924310757,5000.0,0.0001652,2]
[373257119,1752924326272,5000.0,0.0001652,2]
[373257122,1752924341596,5000.0,0.0001652,2]
[373257123,1752924357095,5000.0,0.0001652,2]
[373257124,1752924371344,1942.13959542,0.00027397,120]
[373257125,1752924372280,5000.0,0.0001652,2]
[373257126,1752924388316,5000.0,0.0001652,2]
[373257127,1752924404231,5000.0,0.0001652,2]
[373257128,1752924420943,3601.50499698,0.0001652,2]
[373257270,1752924633670,-300.0,0.00016831,2]
[373257272,1752924633681,-300.0,0.00016831,2]
[373257274,1752924633691,-1200.0,0.00016831,2]
[373257277,1752924633702,-987.08179857,0.00016832,2]
[373257295,1752924638603,-212.91820143,0.00016832,2]
[373257296,1752924638613,-297.0,0.00016832,2]
[373257298,1752924638623,-300.0,0.00016832,2]
[373257299,1752924638632,-460.0,0.00016833,2]
[373257300,1752924638642,-460.0,0.00016833,2]
[373257301,1752924638652,-460.0,0.00016833,2]
[373257302,1752924638661,-460.0,0.00016833,2]
[373257303,1752924638673,-460.0,0.00016833,2]
[373257304,1752924638682,-460.0,0.00016833,2]
[373257305,1752924638693,-460.0,0.00016833,2]
[373257306,1752924638702,-975.59,0.00016833,2]
[373257307,1752924638712,-460.0,0.00016833,2]
[373257308,1752924638723,-460.0,0.00016833,2]
[373257309,1752924638733,-435.7442184,0.00016833,2]
[373257310,1752924638746,-24.2557816,0.00016833,2]
[373257311,1752924638756,-460.0,0.00016833,2]
[373257312,1752924638766,-462.35497206,0.00016833,2]
[373257313,1752924638776,-460.0,0.00016833,2]
[373257314,1752924638786,-460.0,0.00016833,2]
[373257315,1752924638796,-460.0,0.00016833,2]
[373257316,1752924638808,-1974.87,0.00016833,2]
[373257317,1752924638819,-460.0,0.00016833,2]
[373257319,1752924638827,-460.0,0.00016833,2]
[373257320,1752924638836,-460.0,0.00016833,2]
[373257321,1752924638846,-460.0,0.00016833,2]
[373257322,1752924638856,-1879.97,0.00016833,2]
[373257323,1752924638866,-500.0,0.00016834,2]
[373257324,1752924638875,-460.0,0.00016834,2]
[373257325,1752924638885,-460.0,0.00016834,2]
[373257326,1752924638894,-460.0,0.00016834,2]
[373257327,1752924638904,-460.0,0.00016834,2]
[373257328,1752924638913,-500.0,0.00016834,2]
[373257329,1752924638923,-460.0,0.00016834,2]
[373257330,1752924638932,-460.0,0.00016834,2]
[373257331,1752924638942,-460.0,0.00016834,2]
[373257332,1752924638951,-460.0,0.00016834,2]
[373257333,1752924638960,-460.0,0.00016834,2]
[373257334,1752924638970,-460.0,0.00016834,2]
[373257335,1752924638981,-460.0,0.00016834,2]
[373257336,1752924638991,-460.0,0.00016834,2]
[373257337,1752924639001,-527.16458066,0.00016834,2]
[373257338,1752924639012,-460.0,0.00016834,2]
[373257339,1752924639022,-460.0,0.00016834,2]
[373257340,1752924639031,-460.0,0.00016834,2]
[373257341,1752924639041,-460.0,0.00016834,2]